[Event "Vener-dì-Lampo"]
[Site "Chess.com"]
[Date "2020.05.29"]
[Round "1"]
[White "crippo"]
[Black "SanSecondoPR"]
[Result "1-0"]
[WhiteElo "1609"]
[BlackElo "1232"]
[TimeControl "300+2"]
[EndTime "12:05:58 PDT"]
[Termination "crippo ha vinto per abbandono"]

1. e4 {[%clk 0:04:49.5]} 1... e5 {[%clk 0:04:57.8]} 2. Nf3 {[%clk 0:04:48.9]}
2... Nc6 {[%clk 0:04:54.7]} 3. Bc4 {[%clk 0:04:48.4]} 3... Nf6 {[%clk
0:04:53.5]} 4. d3 {[%clk 0:04:48.6]} 4... Bc5 {[%clk 0:04:51.1]} 5. Bg5 {[%clk
0:04:42.9]} 5... d6 {[%clk 0:04:34]} 6. Nc3 {[%clk 0:04:42.2]} 6... Be6 {[%clk
0:04:29.6]} 7. Nd5 {[%clk 0:04:41]} 7... Bxd5 {[%clk 0:04:25.3]} 8. exd5 {[%clk
0:04:40.9]} 8... Na5 {[%clk 0:04:18.2]} 9. Bb5+ {[%clk 0:04:39.8]} 9... c6
{[%clk 0:04:14]} 10. dxc6 {[%clk 0:04:39.5]} 10... bxc6 {[%clk 0:04:13.4]} 11.
Ba4 {[%clk 0:04:39.1]} 11... Qe7 {[%clk 0:03:54.4]} 12. Qd2 {[%clk 0:04:36.2]}
12... Bb6 {[%clk 0:03:39.1]} 13. b4 {[%clk 0:04:33.6]} 13... e4 {[%clk
0:03:08.9]} 14. O-O {[%clk 0:04:29.7]} 14... O-O {[%clk 0:02:54.7]} 15. bxa5
{[%clk 0:04:28.4]} 15... exf3 {[%clk 0:02:33.3]} 16. axb6 {[%clk 0:04:26.3]}
16... fxg2 {[%clk 0:02:30.8]} 17. Rfe1 {[%clk 0:04:25.9]} 17... Qd8 {[%clk
0:02:28.3]} 18. Bxc6 {[%clk 0:04:23.1]} 18... Rb8 {[%clk 0:02:24]} 19. bxa7
{[%clk 0:04:21.7]} 19... Rc8 {[%clk 0:02:17.8]} 20. a8=Q {[%clk 0:04:19.9]}
20... Rxa8 {[%clk 0:02:17.4]} 21. Bxa8 {[%clk 0:04:19.9]} 21... Qxa8 {[%clk
0:02:14.9]} 22. Bxf6 {[%clk 0:04:20.6]} 22... gxf6 {[%clk 0:02:12.3]} 23. Qh6
{[%clk 0:04:21.2]} 23... Qf3 {[%clk 0:01:52.7]} 24. Re3 {[%clk 0:04:19.2]} 24...
Qf5 {[%clk 0:01:49.2]} 25. Rg3+ {[%clk 0:04:19.3]} 1-0

[Event "Vener-dì-Lampo"]
[Site "Chess.com"]
[Date "2020.05.29"]
[Round "1"]
[White "Mrtre7"]
[Black "fisherpez"]
[Result "0-1"]
[WhiteElo "1453"]
[BlackElo "1715"]
[TimeControl "300+2"]
[EndTime "12:07:33 PDT"]
[Termination "fisherpez ha vinto per abbandono"]

1. d4 {[%clk 0:05:01.9]} 1... e6 {[%clk 0:05:01.1]} 2. c4 {[%clk 0:05:02.3]}
2... b6 {[%clk 0:05:01.9]} 3. Nc3 {[%clk 0:05:02.6]} 3... Bb4 {[%clk 0:05:01.5]}
4. Nf3 {[%clk 0:04:59.7]} 4... Bb7 {[%clk 0:05:02]} 5. a3 {[%clk 0:04:57.5]}
5... Bxc3+ {[%clk 0:05:02.3]} 6. bxc3 {[%clk 0:04:58.6]} 6... Nf6 {[%clk
0:05:04]} 7. e3 {[%clk 0:04:56.5]} 7... d6 {[%clk 0:05:05.2]} 8. Bd3 {[%clk
0:04:57.6]} 8... Nc6 {[%clk 0:05:05.4]} 9. O-O {[%clk 0:04:55]} 9... Na5 {[%clk
0:05:06.1]} 10. Re1 {[%clk 0:04:44.3]} 10... Ba6 {[%clk 0:05:07.1]} 11. Qa4+
{[%clk 0:04:24.5]} 11... Qd7 {[%clk 0:05:00.9]} 12. Qb4 {[%clk 0:04:02]} 12...
d5 {[%clk 0:04:43.3]} 13. Bc2 {[%clk 0:03:25.1]} 13... Bxc4 {[%clk 0:04:34.4]}
14. Ba4 {[%clk 0:03:06.1]} 14... c6 {[%clk 0:04:23]} 15. e4 {[%clk 0:02:48.7]}
15... Nxe4 {[%clk 0:04:19.3]} 16. Ne5 {[%clk 0:02:46.9]} 16... Qc7 {[%clk
0:04:17.5]} 17. g3 {[%clk 0:02:18.9]} 17... Nd6 {[%clk 0:04:15.4]} 18. Bf4
{[%clk 0:02:14.6]} 18... Rd8 {[%clk 0:03:40.7]} 19. Nxc4 {[%clk 0:02:05.8]}
19... Naxc4 {[%clk 0:03:36.9]} 20. Bb3 {[%clk 0:01:55.2]} 20... a5 {[%clk
0:03:32.7]} 21. Rxe6+ {[%clk 0:01:10]} 21... fxe6 {[%clk 0:03:24.7]} 22. Qa4
{[%clk 0:01:08]} 22... b5 {[%clk 0:03:24.8]} 23. Be5 {[%clk 0:01:05.1]} 23...
bxa4 {[%clk 0:03:23]} 24. Bxa4 {[%clk 0:01:05.2]} 24... O-O {[%clk 0:03:22.2]}
0-1

[Event "Vener-dì-Lampo"]
[Site "Chess.com"]
[Date "2020.05.29"]
[Round "1"]
[White "markk000"]
[Black "pedrak"]
[Result "1-0"]
[WhiteElo "1578"]
[BlackElo "1990"]
[TimeControl "300+2"]
[EndTime "12:11:14 PDT"]
[Termination "markk000 ha vinto per abbandono"]

1. d4 {[%clk 0:05:00]} 1... Nf6 {[%clk 0:04:58.8]} 2. c4 {[%clk 0:05:01]} 2...
e6 {[%clk 0:04:59.4]} 3. Nc3 {[%clk 0:05:02.1]} 3... Bb4 {[%clk 0:04:59.5]} 4.
Bd2 {[%clk 0:05:00.9]} 4... d6 {[%clk 0:04:57.7]} 5. Nf3 {[%clk 0:05:01.2]} 5...
O-O {[%clk 0:04:57.6]} 6. e3 {[%clk 0:05:01.3]} 6... b6 {[%clk 0:04:57.3]} 7.
Be2 {[%clk 0:04:56.4]} 7... Bb7 {[%clk 0:04:57.5]} 8. O-O {[%clk 0:04:56.9]}
8... Nbd7 {[%clk 0:04:57.7]} 9. a3 {[%clk 0:04:57.5]} 9... Bxc3 {[%clk
0:04:58.1]} 10. Bxc3 {[%clk 0:04:59.4]} 10... Qe7 {[%clk 0:04:58]} 11. b4 {[%clk
0:04:47.6]} 11... Ne4 {[%clk 0:04:58.2]} 12. Qc2 {[%clk 0:04:45.2]} 12... f5
{[%clk 0:04:56.6]} 13. Nd2 {[%clk 0:04:39.1]} 13... Nxc3 {[%clk 0:04:54.7]} 14.
Qxc3 {[%clk 0:04:39.5]} 14... Nf6 {[%clk 0:04:55.4]} 15. Bf3 {[%clk 0:04:29.6]}
15... Ne4 {[%clk 0:04:54.5]} 16. Nxe4 {[%clk 0:04:26.8]} 16... fxe4 {[%clk
0:04:54.5]} 17. Be2 {[%clk 0:04:25.8]} 17... c5 {[%clk 0:04:50.5]} 18. dxc5
{[%clk 0:04:18.3]} 18... bxc5 {[%clk 0:04:46.1]} 19. b5 {[%clk 0:04:17.1]} 19...
d5 {[%clk 0:04:42.9]} 20. a4 {[%clk 0:04:13.1]} 20... Rac8 {[%clk 0:04:34.1]}
21. Rad1 {[%clk 0:04:06.4]} 21... Qg5 {[%clk 0:04:30.2]} 22. a5 {[%clk
0:03:16.1]} 22... h5 {[%clk 0:04:28.2]} 23. h3 {[%clk 0:03:16]} 23... Rf6 {[%clk
0:04:23.9]} 24. a6 {[%clk 0:03:12.8]} 24... Ba8 {[%clk 0:04:23.9]} 25. f3 {[%clk
0:03:00.5]} 25... exf3 {[%clk 0:04:11]} 26. Rxf3 {[%clk 0:03:00.5]} 26... Rxf3
{[%clk 0:04:07.4]} 27. Bxf3 {[%clk 0:02:59.9]} 27... d4 {[%clk 0:04:08]} 28.
exd4 {[%clk 0:02:55.7]} 28... cxd4 {[%clk 0:03:55.4]} 29. Rxd4 {[%clk
0:02:46.1]} 29... e5 {[%clk 0:03:41.8]} 30. Rd7 {[%clk 0:02:30.6]} 30... e4
{[%clk 0:03:34.3]} 31. Be2 {[%clk 0:02:17.8]} 31... e3 {[%clk 0:03:32.6]} 32. g4
{[%clk 0:01:41.9]} 32... hxg4 {[%clk 0:03:17.9]} 33. Bxg4 {[%clk 0:01:41.9]}
33... Re8 {[%clk 0:03:14]} 34. Kf1 {[%clk 0:00:59]} 34... Qf4+ {[%clk
0:02:53.5]} 35. Ke1 {[%clk 0:00:55.5]} 35... Qf2+ {[%clk 0:02:27.5]} 36. Kd1
{[%clk 0:00:49.2]} 36... Bf3+ {[%clk 0:02:26.8]} 37. Kc1 {[%clk 0:00:38.1]}
37... Qf1+ {[%clk 0:02:25.2]} 38. Kb2 {[%clk 0:00:39]} 38... Qf2+ {[%clk
0:02:10.2]} 39. Ka3 {[%clk 0:00:33.2]} 1-0

[Event "Vener-dì-Lampo"]
[Site "Chess.com"]
[Date "2020.05.29"]
[Round "1"]
[White "mr6701"]
[Black "sergiodone"]
[Result "1-0"]
[WhiteElo "1966"]
[BlackElo "1524"]
[TimeControl "300+2"]
[EndTime "12:12:00 PDT"]
[Termination "mr6701 ha vinto per tempo"]

1. e4 {[%clk 0:05:01.9]} 1... g5 {[%clk 0:04:55.3]} 2. d4 {[%clk 0:04:58.9]}
2... Bg7 {[%clk 0:04:53.6]} 3. Nc3 {[%clk 0:04:59]} 3... e6 {[%clk 0:04:48.4]}
4. h4 {[%clk 0:04:57.9]} 4... h6 {[%clk 0:04:37.5]} 5. hxg5 {[%clk 0:04:57.3]}
5... hxg5 {[%clk 0:04:37.6]} 6. Rxh8 {[%clk 0:04:59.2]} 6... Bxh8 {[%clk
0:04:37.6]} 7. e5 {[%clk 0:04:56.5]} 7... c5 {[%clk 0:04:32.9]} 8. Qh5 {[%clk
0:04:56.4]} 8... Bg7 {[%clk 0:04:15.5]} 9. Qh7 {[%clk 0:04:56.3]} 9... Kf8
{[%clk 0:04:12]} 10. Nf3 {[%clk 0:04:53.5]} 10... cxd4 {[%clk 0:04:12.8]} 11.
Nxd4 {[%clk 0:04:50.9]} 11... Bxe5 {[%clk 0:04:03.6]} 12. Nf3 {[%clk 0:04:44.2]}
12... Bf6 {[%clk 0:03:54.1]} 13. Ne4 {[%clk 0:04:36.9]} 13... g4 {[%clk
0:03:35.7]} 14. Nd6 {[%clk 0:04:22.4]} 14... Qe7 {[%clk 0:02:42.2]} 15. Nxc8
{[%clk 0:04:21.8]} 15... Qb4+ {[%clk 0:02:38.1]} 16. Kd1 {[%clk 0:03:45.8]}
16... gxf3 {[%clk 0:02:29.1]} 17. gxf3 {[%clk 0:03:33.6]} 17... Nc6 {[%clk
0:02:27.8]} 18. c3 {[%clk 0:03:22.4]} 18... Qa4+ {[%clk 0:02:18.3]} 19. b3
{[%clk 0:03:19.3]} 19... Qa5 {[%clk 0:01:44.1]} 20. Nd6 {[%clk 0:03:05.8]} 20...
Qd5+ {[%clk 0:01:43.7]} 21. Qd3 {[%clk 0:03:06.7]} 21... Qxd3+ {[%clk
0:01:11.4]} 22. Bxd3 {[%clk 0:03:08.6]} 22... Bxc3 {[%clk 0:01:11.7]} 23. Rb1
{[%clk 0:03:05.7]} 23... Ke7 {[%clk 0:01:09.5]} 24. Ba3 {[%clk 0:03:05.9]} 24...
Bb4 {[%clk 0:01:01.6]} 25. Bxb4 {[%clk 0:02:54.6]} 25... Nxb4 {[%clk 0:01:02.3]}
26. Kd2 {[%clk 0:02:32.5]} 26... Nxd3 {[%clk 0:01:01.1]} 27. Kxd3 {[%clk
0:02:28.8]} 27... Rb8 {[%clk 0:01:01.5]} 28. Nc4 {[%clk 0:02:26.6]} 28... Nf6
{[%clk 0:00:55.9]} 29. Re1 {[%clk 0:02:25.4]} 29... b5 {[%clk 0:00:52]} 30. Ne3
{[%clk 0:02:24.7]} 30... a5 {[%clk 0:00:49.9]} 31. a3 {[%clk 0:02:21.3]} 31...
Rc8 {[%clk 0:00:47.6]} 32. f4 {[%clk 0:02:19.2]} 32... Kf8 {[%clk 0:00:36.1]}
33. f5 {[%clk 0:02:19.2]} 33... e5 {[%clk 0:00:34.2]} 34. Rh1 {[%clk 0:02:16.1]}
34... d5 {[%clk 0:00:30.4]} 35. Rh8+ {[%clk 0:02:14.7]} 35... Ng8 {[%clk
0:00:30.9]} 36. Nxd5 {[%clk 0:02:15.6]} 36... Rd8 {[%clk 0:00:30]} 37. Ke4
{[%clk 0:02:16.7]} 37... Rxd5 {[%clk 0:00:27.4]} 38. Kxd5 {[%clk 0:02:14.4]}
38... Kg7 {[%clk 0:00:28.3]} 39. Rh1 {[%clk 0:02:12]} 39... Nf6+ {[%clk
0:00:25.6]} 40. Kxe5 {[%clk 0:02:11.8]} 40... Ng4+ {[%clk 0:00:24.8]} 41. Kd4
{[%clk 0:02:01.8]} 41... Nxf2 {[%clk 0:00:24.8]} 42. Rc1 {[%clk 0:01:57.4]}
42... f6 {[%clk 0:00:22.5]} 43. Rc5 {[%clk 0:01:54.6]} 43... b4 {[%clk
0:00:13.9]} 44. a4 {[%clk 0:01:53.9]} 44... Ng4 {[%clk 0:00:11.1]} 45. Rxa5
{[%clk 0:01:53.7]} 45... Ne5 {[%clk 0:00:11.5]} 46. Ra7+ {[%clk 0:01:45.8]}
46... Kh6 {[%clk 0:00:08.2]} 47. Rb7 {[%clk 0:01:47.7]} 47... Kg5 {[%clk
0:00:08.4]} 48. Ke4 {[%clk 0:01:40.3]} 1-0

[Event "Vener-dì-Lampo"]
[Site "Chess.com"]
[Date "2020.05.29"]
[Round "2"]
[White "crippo"]
[Black "mr6701"]
[Result "0-1"]
[WhiteElo "1607"]
[BlackElo "1968"]
[TimeControl "300+2"]
[EndTime "12:21:20 PDT"]
[Termination "mr6701 ha vinto per abbandono"]

1. e4 {[%clk 0:05:01.9]} 1... d5 {[%clk 0:04:58.3]} 2. exd5 {[%clk 0:05:00.6]}
2... Nf6 {[%clk 0:04:59.4]} 3. Bc4 {[%clk 0:04:59]} 3... Nxd5 {[%clk 0:05:00.2]}
4. Nf3 {[%clk 0:04:59.9]} 4... c6 {[%clk 0:05:00.7]} 5. d4 {[%clk 0:05:00.7]}
5... e6 {[%clk 0:05:01.9]} 6. c3 {[%clk 0:05:01.8]} 6... Be7 {[%clk 0:05:03.3]}
7. O-O {[%clk 0:05:00.7]} 7... O-O {[%clk 0:05:04.4]} 8. Nbd2 {[%clk 0:05:01.4]}
8... Nd7 {[%clk 0:05:05.5]} 9. Ne4 {[%clk 0:05:02]} 9... N7f6 {[%clk 0:05:06.5]}
10. Ng3 {[%clk 0:05:02.2]} 10... b5 {[%clk 0:05:06.3]} 11. Bd3 {[%clk
0:05:02.9]} 11... b4 {[%clk 0:05:03.8]} 12. c4 {[%clk 0:05:02.1]} 12... Nb6
{[%clk 0:05:05]} 13. Be2 {[%clk 0:05:00.3]} 13... c5 {[%clk 0:05:04.5]} 14. b3
{[%clk 0:04:54.4]} 14... cxd4 {[%clk 0:04:59]} 15. Qxd4 {[%clk 0:04:50.4]} 15...
Bb7 {[%clk 0:04:55.8]} 16. Qb2 {[%clk 0:04:44.8]} 16... Qc7 {[%clk 0:04:45.5]}
17. Bg5 {[%clk 0:04:43]} 17... h6 {[%clk 0:04:44.6]} 18. Be3 {[%clk 0:04:39.8]}
18... Ng4 {[%clk 0:04:41]} 19. Nh5 {[%clk 0:04:19.5]} 19... f6 {[%clk
0:04:33.8]} 20. Bf4 {[%clk 0:04:11.1]} 20... e5 {[%clk 0:04:32.5]} 21. Bg3
{[%clk 0:04:11.8]} 21... Be4 {[%clk 0:04:21.7]} 22. Nd2 {[%clk 0:03:59.9]} 22...
f5 {[%clk 0:03:52.8]} 23. Nxe4 {[%clk 0:03:57.2]} 23... g6 {[%clk 0:03:37.8]}
24. Bxg4 {[%clk 0:03:36.1]} 24... gxh5 {[%clk 0:03:22.9]} 25. Bxe5 {[%clk
0:03:34.1]} 25... Qc8 {[%clk 0:03:18]} 26. Bh8 {[%clk 0:03:22.5]} 26... Rf7
{[%clk 0:03:13.8]} 27. Bxh5 {[%clk 0:03:22.4]} 27... Rh7 {[%clk 0:03:00.3]} 28.
Nf6+ {[%clk 0:03:14.1]} 28... Bxf6 {[%clk 0:03:01.1]} 29. Bxf6 {[%clk
0:03:14.2]} 29... Nd7 {[%clk 0:02:56.2]} 30. Rad1 {[%clk 0:03:01.5]} 30... Qc6
{[%clk 0:02:49.2]} 31. Bh4 {[%clk 0:02:47.1]} 31... Rg7 {[%clk 0:02:45.9]} 32.
g3 {[%clk 0:02:41.3]} 32... f4 {[%clk 0:02:46]} 33. Rfe1 {[%clk 0:02:34.6]}
33... fxg3 {[%clk 0:02:43.7]} 34. Bxg3 {[%clk 0:02:32.2]} 34... Nf6 {[%clk
0:02:42.1]} 35. Rd6 {[%clk 0:02:29.5]} 35... Qxd6 {[%clk 0:02:37.7]} 36. Rd1
{[%clk 0:02:14]} 36... Qe6 {[%clk 0:02:31.6]} 37. Bf3 {[%clk 0:02:05.3]} 37...
Kh8 {[%clk 0:02:26.4]} 38. Kh1 {[%clk 0:02:03.5]} 38... Ne4 {[%clk 0:02:10.9]}
39. Re1 {[%clk 0:02:00.3]} 39... Nxg3+ {[%clk 0:02:10.4]} 40. fxg3 {[%clk
0:01:54.7]} 40... Qxe1+ {[%clk 0:02:11]} 41. Kg2 {[%clk 0:01:53.9]} 41... Rf8
{[%clk 0:02:11.9]} 0-1

[Event "Vener-dì-Lampo"]
[Site "Chess.com"]
[Date "2020.05.29"]
[Round "2"]
[White "sergiodone"]
[Black "SanSecondoPR"]
[Result "1-0"]
[WhiteElo "1527"]
[BlackElo "1229"]
[TimeControl "300+2"]
[EndTime "12:21:47 PDT"]
[Termination "sergiodone ha vinto per tempo"]

1. e4 {[%clk 0:04:42.2]} 1... e5 {[%clk 0:04:59]} 2. d4 {[%clk 0:04:42.1]} 2...
exd4 {[%clk 0:04:58.3]} 3. Nf3 {[%clk 0:04:41.9]} 3... d5 {[%clk 0:04:54.7]} 4.
e5 {[%clk 0:04:39.7]} 4... Nc6 {[%clk 0:04:51.1]} 5. a3 {[%clk 0:04:33.5]} 5...
Bg4 {[%clk 0:04:50.3]} 6. Be2 {[%clk 0:04:28.6]} 6... Bxf3 {[%clk 0:04:35.6]} 7.
Bxf3 {[%clk 0:04:26.9]} 7... Nxe5 {[%clk 0:04:28.2]} 8. Qxd4 {[%clk 0:04:23.9]}
8... Nxf3+ {[%clk 0:04:22.4]} 9. gxf3 {[%clk 0:04:24.2]} 9... Nf6 {[%clk
0:04:20.7]} 10. Bg5 {[%clk 0:04:23.4]} 10... Qe7+ {[%clk 0:04:16.1]} 11. Kf1
{[%clk 0:04:16.3]} 11... c5 {[%clk 0:03:58.6]} 12. Qf4 {[%clk 0:04:08.4]} 12...
Rd8 {[%clk 0:03:29.6]} 13. Nc3 {[%clk 0:04:03.5]} 13... Rd6 {[%clk 0:03:01.3]}
14. Re1 {[%clk 0:04:01.9]} 14... Re6 {[%clk 0:02:58.7]} 15. Kg2 {[%clk
0:04:02.7]} 15... Qd6 {[%clk 0:02:48.1]} 16. Qxd6 {[%clk 0:03:54.7]} 16... Bxd6
{[%clk 0:02:45.3]} 17. Nb5 {[%clk 0:03:45.9]} 17... Bb8 {[%clk 0:02:31.9]} 18.
b3 {[%clk 0:03:30.3]} 18... a6 {[%clk 0:02:26.8]} 19. Rxe6+ {[%clk 0:03:29.9]}
19... fxe6 {[%clk 0:02:22.8]} 20. Nc3 {[%clk 0:03:27.7]} 20... O-O {[%clk
0:02:17.1]} 21. Re1 {[%clk 0:03:26.5]} 21... Kf7 {[%clk 0:01:47.1]} 22. b4
{[%clk 0:03:16.9]} 22... Bc7 {[%clk 0:01:02.9]} 23. bxc5 {[%clk 0:03:13.6]}
23... Ba5 {[%clk 0:01:01.6]} 24. Bd2 {[%clk 0:02:57]} 24... d4 {[%clk
0:00:54.6]} 25. Nb1 {[%clk 0:02:57.5]} 25... Bc7 {[%clk 0:00:21]} 26. Bg5 {[%clk
0:02:48.2]} 26... e5 {[%clk 0:00:15]} 27. Bxf6 {[%clk 0:02:38.7]} 27... gxf6
{[%clk 0:00:12]} 28. Re4 {[%clk 0:02:38]} 1-0

[Event "Vener-dì-Lampo"]
[Site "Chess.com"]
[Date "2020.05.29"]
[Round "2"]
[White "pedrak"]
[Black "Mrtre7"]
[Result "1-0"]
[WhiteElo "1991"]
[BlackElo "1452"]
[TimeControl "300+2"]
[EndTime "12:22:27 PDT"]
[Termination "pedrak ha vinto per abbandono"]

1. e4 {[%clk 0:05:01.9]} 1... c5 {[%clk 0:05:00]} 2. Nc3 {[%clk 0:05:00]} 2...
g6 {[%clk 0:04:56.4]} 3. Nf3 {[%clk 0:04:58.4]} 3... Bg7 {[%clk 0:04:57]} 4. d4
{[%clk 0:04:59]} 4... cxd4 {[%clk 0:04:57.3]} 5. Nxd4 {[%clk 0:04:59.8]} 5...
Nc6 {[%clk 0:04:58.4]} 6. Be3 {[%clk 0:04:59.6]} 6... Nf6 {[%clk 0:04:59.2]} 7.
f3 {[%clk 0:05:00.3]} 7... O-O {[%clk 0:04:59.8]} 8. Qd2 {[%clk 0:05:00.5]} 8...
d5 {[%clk 0:04:59.9]} 9. exd5 {[%clk 0:04:52.7]} 9... Nxd5 {[%clk 0:04:52.4]}
10. Nxd5 {[%clk 0:04:52.3]} 10... Qxd5 {[%clk 0:04:53.1]} 11. c3 {[%clk
0:04:52.2]} 11... Rd8 {[%clk 0:04:07.5]} 12. Nxc6 {[%clk 0:04:48]} 12... bxc6
{[%clk 0:03:47]} 13. Be2 {[%clk 0:04:41]} 13... Bf5 {[%clk 0:03:40]} 14. c4
{[%clk 0:04:39.3]} 14... Qd6 {[%clk 0:03:35]} 15. Qxd6 {[%clk 0:04:37.7]} 15...
Rxd6 {[%clk 0:03:32.9]} 16. Bc1 {[%clk 0:04:30.1]} 16... Rb8 {[%clk 0:03:31.1]}
17. Bf4 {[%clk 0:04:25.1]} 17... e5 {[%clk 0:03:30.8]} 18. Bc1 {[%clk
0:04:24.1]} 18... Re6 {[%clk 0:03:20.5]} 19. g4 {[%clk 0:04:17.5]} 19... e4
{[%clk 0:02:55]} 20. gxf5 {[%clk 0:04:16.2]} 20... gxf5 {[%clk 0:02:55.8]} 21.
fxe4 {[%clk 0:04:13]} 21... Rxe4 {[%clk 0:02:56.5]} 22. Rb1 {[%clk 0:04:10.4]}
22... Rbe8 {[%clk 0:02:54.4]} 23. Rg1 {[%clk 0:04:03.8]} 23... Rxe2+ {[%clk
0:02:52.7]} 24. Kd1 {[%clk 0:04:04.7]} 24... Kh8 {[%clk 0:02:46.3]} 25. Bf4
{[%clk 0:04:04]} 25... Bxb2 {[%clk 0:02:32.8]} 26. Bd2 {[%clk 0:03:38.5]} 26...
Bd4 {[%clk 0:01:51.4]} 27. Rf1 {[%clk 0:03:20.2]} 27... Rxh2 {[%clk 0:01:49.3]}
28. Rxf5 {[%clk 0:03:20.7]} 28... Ree2 {[%clk 0:01:22.4]} 29. Rb8+ {[%clk
0:03:14.6]} 29... Kg7 {[%clk 0:01:21.7]} 30. Rg5+ {[%clk 0:03:15.4]} 30... Kf6
{[%clk 0:01:22.4]} 31. Bf4 {[%clk 0:03:06.5]} 31... Rxa2 {[%clk 0:01:17.2]} 32.
Bxh2 {[%clk 0:03:00.5]} 32... Rxh2 {[%clk 0:01:15.9]} 33. Rg3 {[%clk 0:02:56]}
33... h5 {[%clk 0:01:07.8]} 34. Rf3+ {[%clk 0:02:56.6]} 34... Ke7 {[%clk
0:01:03.6]} 35. Rb7+ {[%clk 0:02:57.3]} 35... Ke6 {[%clk 0:01:02.8]} 36. Rbxf7
{[%clk 0:02:57.7]} 36... h4 {[%clk 0:01:03.1]} 37. Rh7 {[%clk 0:02:53.9]} 37...
Kd6 {[%clk 0:00:58.1]} 38. Rh5 {[%clk 0:02:53]} 38... Be5 {[%clk 0:00:57.4]} 39.
Rd3+ {[%clk 0:02:48.2]} 39... Ke6 {[%clk 0:00:57.5]} 40. Re3 {[%clk 0:02:44.8]}
40... Rh1+ {[%clk 0:00:41.9]} 41. Kc2 {[%clk 0:02:44.8]} 41... Rh2+ {[%clk
0:00:40.7]} 42. Kd3 {[%clk 0:02:45.3]} 42... Kf6 {[%clk 0:00:28.3]} 43. Rexe5
{[%clk 0:02:45.4]} 43... h3 {[%clk 0:00:29.1]} 44. Re3 {[%clk 0:02:44.2]} 44...
a5 {[%clk 0:00:28.2]} 45. Rhxh3 {[%clk 0:02:44.5]} 45... Rxh3 {[%clk 0:00:28.9]}
46. Rxh3 {[%clk 0:02:45]} 1-0